Cogmind - Beta 12 X4 @@@ ROGUE MODE // 2023.01.14 @ 16:09:02 Player: Lunatic Blue Result: Destroyed by D-53 Grenadier with Mini Grenade Launcher Performance ------------- Evolutions (0) 0 Regions Visited (4) 800 Robots Destroyed (26) 130 Value Destroyed (458) 458 Prototype IDs (23) 460 Alien Tech Used (0) 0 Bonus (202) 202 TOTAL SCORE: 2050 Bonus ------- Follower Combat Kills 219 Friendly Fire -17 Cogmind --------- Core Integrity 0/250 Matter 300/300 Energy 78/100 System Corruption 8% Temperature Cool (14) Movement Treading (240) Ox1 Location -9/Mines Parts ------- > --- POWER (1) -------- (None) > --- PROPULSION (2) --- Light Treads Wheel > --- UTILITY (2) ------ Improved Heat Sink Large Storage Unit > --- WEAPON (2) ------- Particle Gun Beamcaster > --- INVENTORY (15) --- Light Nuclear Core Light Treads Makeshift Terrain Scanner Terrain Scan Processor Transport Network Coupler Makeshift Cloaking Device Hardened Medium Armor Plating Hacking Suite Improved Trap Extractor (0/6) PSU Rigger Light EM Pulse Cannon Grenade Launcher Grenade Launcher Improved Datajack Makeshift Spear Peak State ------------ > --- POWER ------------ Light Nuclear Core > --- PROPULSION ------- Light Treads Wheel > --- UTILITY ---------- Improved Heat Sink Large Storage Unit > --- WEAPON ----------- Particle Gun Beamcaster > --- INVENTORY -------- Light Nuclear Core Light Treads Makeshift Terrain Scanner Transport Network Coupler Makeshift Salvage Targeting Computer Makeshift Cloaking Device Hardened Medium Armor Plating Hacking Suite Improved Trap Extractor PSU Rigger Light EM Pulse Cannon Grenade Launcher Grenade Launcher Improved Datajack Makeshift Spear [Rating: 21] Favorites ----------- Power Light Nuclear Core Engine Light Ion Engine Power Core Light Nuclear Core Propulsion Light Treads Treads Light Treads Leg Aluminum Leg Wheel Wheel Utility Small Storage Unit Device Improved Heat Sink Storage Small Storage Unit Weapon Particle Gun Energy Gun Particle Gun Ballistic Gun Light Assault Rifle Launcher Grenade Launcher Special Melee Weapon Improved Datajack Build | -11 -10 -10 -10 -9 ------- Run | Scr Mat Min Exi Min Slots Evolved . | . . . . . Power . | . . . . . Propulsion . | . . . . . Utility . | . . . . . Weapon . | . . . . . Parts Attached 32 | . 16 11 5 . Power 5 | . 4 1 . . Engine 4 | . 4 . . . Core 1 | . . 1 . . Reactor . | . . . . . Propulsion 7 | . 5 1 1 . Treads 4 | . 3 1 . . Leg . | . . . . . Wheel 3 | . 2 . 1 . Hover . | . . . . . Flight . | . . . . . Utility 5 | . 1 2 2 . Device 3 | . 1 2 . . Storage 2 | . . . 2 . Processor . | . . . . . Hackware . | . . . . . Protection . | . . . . . Artifact . | . . . . . Weapon 15 | . 6 7 2 . Energy Gun 11 | . 5 5 1 . Energy Cannon . | . . . . . Ballistic Gun 1 | . 1 . . . Ballistic Cannon . | . . . . . Launcher 1 | . . 1 . . Special Weapon . | . . . . . Impact Weapon . | . . . . . Slashing Weapon . | . . . . . Piercing Weapon . | . . . . . Special Melee Weapon 2 | . . 1 1 . Unidentified Prototypes . | . . . . . Corrupted Parts 1 | . . 1 . . System Corruption 6 | . . 6 . . Parts Lost 4 | . 1 2 . 1 Power 2 | . . 1 . 1 Propulsion 2 | . 1 1 . . Utility . | . . . . . Weapon . | . . . . . Highest Loss Streak 2 | . 1 2 . 1 To Critical Strikes . | . . . . . Average Slot Usage (%) 95 | . 88 98 100 100 Engine 4 | . 13 . . . Core 9 | . . 13 14 14 Treads 13 | . 12 13 14 14 Wheel 13 | . 13 14 14 14 Device 10 | . 4 14 14 14 Storage 14 | . 14 14 14 14 Energy Gun 23 | . 16 26 26 28 Ballistic Gun 3 | . 10 . . . Naked Turns . | . . . . . Heaviest Build 34 | 13 13 21 34 34 Greatest Support 20 | 20 20 20 10 10 Greatest Overweight (x) 4 | . 4 1 3 3 Average Overweight (x) 1 | . . . 1 2 Largest Inventory Capacity 15 | . 8 8 15 15 Average Capacity 9 | . 8 8 11 15 Most Carried 15 | . 8 8 14 15 Average Carried 9 | . 7 7 10 14 Final Capacity 15 | 8 8 8 15 15 Final Carried 15 | 6 8 8 14 15 Class Distribution -------------------- 54% | Mutant 43% | Commander-Mutant Dominant Class ---------------- Mutant | -10/Materials Mutant | -10/Mines Commander-Mutant | -10/Exiles Commander-Mutant | -9/Mines Resources | -11 -10 -10 -10 -9 ----------- Run | Scr Mat Min Exi Min Matter Collected 647 | 200 202 138 48 59 Remotely . | . . . . . Salvage Created 995 | . 650 243 86 16 Parts 54 | . 34 13 2 5 Haulers Intercepted 1 | . 1 . . . Recyclers Shooed 3 | . 1 1 . 1 Parts Field Recycled . | . . . . . Retrieved Matter . | . . . . . Parts Self-Destructed . | . . . . . Prevented . | . . . . . Kills | -11 -10 -10 -10 -9 ------- Run | Scr Mat Min Exi Min Combat Hostiles Destroyed 14 | . 8 6 . . Guns 12 | . 8 4 . . AOE 2 | . . 2 . . Classes Destroyed 8 | . 7 . . 1 Worker 2 | . 2 . . . Builder 1 | . . . . 1 Hauler 1 | . 1 . . . Recycler 5 | . 4 1 . . Operator 1 | . 1 . . . Watcher 2 | . 2 . . . Swarmer 6 | . 3 3 . . Grunt 8 | . 5 3 . . Best Kill Streak 4 | . 4 3 . 1 Combat Bots Only 3 | . 3 3 . . Max Kills in Single Turn 2 | . 1 2 . 1 Gunslinging . | . . . . . Exploded 2 | . . 2 . . Melee . | . . . . . Uniques/NPCs Destroyed . | . . . . . Combat | -11 -10 -10 -10 -9 -------- Run | Scr Mat Min Exi Min Damage Taken 971 | . 351 375 . 245 Core 254 | . 71 85 . 98 Absorbed by Shields . | . . . . . Core Remaining (%) 100 | 100 . . . . Volleys Fired 95 | . 62 22 6 5 Largest 2 | . 2 2 2 2 Hottest 140 | . 80 140 140 140 Shots Fired 191 | . 124 44 12 11 Gun 190 | . 124 43 12 11 Cannon . | . . . . . Launcher 1 | . . 1 . . Special . | . . . . . Kinetic 47 | . 47 . . . Thermal 143 | . 77 43 12 11 Explosive 1 | . . 1 . . Electromagnetic . | . . . . . Robot Hit Streak 18 | . 8 5 17 18 Robot Miss Streak 5 | . 4 5 . 3 Penetration Max . | . . . . . Secondary Targets 3 | . 1 2 . . Max Gunslinging Chain 1 | . 1 1 . . Shots Hit Robots 116 | . 75 23 14 4 Core Hits 49 | . 33 13 2 1 Critical Kills 1 | . 1 . . . Critical Parts Destroyed . | . . . . . Critical Strikes 9 | . 4 1 4 . Burn 8 | . 3 1 4 . Destroy 1 | . 1 . . . Melee Attacks 2 | . . . 2 . Impact . | . . . . . Slashing . | . . . . . Piercing . | . . . . . Sneak Attacks 1 | . . . 1 . Combat Hostiles . | . . . . . Follow-up Attacks . | . . . . . Damage Inflicted 1471 | . 767 415 216 73 Guns 1379 | . 767 323 216 73 Cannons . | . . . . . Explosions 89 | . . 89 . . Melee . | . . . . . Ramming 3 | . . 3 . . Kinetic 263 | . 263 . . . Thermal 1116 | . 504 323 216 73 Explosive 89 | . . 89 . . Electromagnetic . | . . . . . Impact . | . . . . . Slashing . | . . . . . Piercing . | . . . . . Highest Corruption 8 | . 2 8 8 8 Average Corruption 6 | . 2 5 8 8 Corruption Purged . | . . . . . Corruption Blocked . | . . . . . Effects 58 | . . 19 32 7 Message Errors 14 | . . 5 8 1 Matter Fused 10 | . . 3 7 . Heat Flow Errors 11 | . . 2 8 1 Energy Discharges 7 | . . 2 2 3 Data Loss (minor) 9 | . . 4 5 . Data Loss (major) 2 | . . . 2 . Misfires 3 | . . 2 . 1 Alerts 1 | . . . . 1 Weapon Failures 1 | . . 1 . . Overload Shots . | . . . . . Overflow Damage . | . . . . . Projectiles . | . . . . . Explosions . | . . . . . Melee . | . . . . . Knockbacks . | . . . . . Impact . | . . . . . Kinetic . | . . . . . Secondary . | . . . . . Self-Inflicted Damage . | . . . . . Shots . | . . . . . Rammed 1 | . . 1 . . Targets Rammed 1 | . . 1 . . Kicked . | . . . . . Crushed . | . . . . . Highest Temperature 300 | . 136 300 195 148 Average Temperature 65 | . 35 119 74 40 Received Heat Transfer 327 | . 156 171 . . Effects 1 | . . 1 . . Interference 1 | . . 1 . . Siege Activations . | . . . . . Robots Corrupted . | . . . . . Combat Hostiles . | . . . . . Parts Fried . | . . . . . Impact Corruptions . | . . . . . Robots Melted 1 | . . . 1 . Combat Hostiles . | . . . . . Parts Melted 4 | . . 2 2 . Heat Transferred 3196 | . 1514 794 740 148 Parts Sabotaged . | . . . . . Parts Stolen . | . . . . . Parts Stripped . | . . . . . Power Chain Reactions . | . . . . . Missiles Intercepted . | . . . . . Alert | -11 -10 -10 -10 -9 ------- Run | Scr Mat Min Exi Min Peak Influence 231 | . 152 231 . 216 Initial 1 | . . 1 . . Average 81 | . 66 83 . 117 Maximum Alert Level 1 | . . 1 . 1 Low Security (%) 90 | . 100 90 . 66 Level 1 9 | . . 9 . 33 Level 2 . | . . . . . Level 3 . | . . . . . Level 4 . | . . . . . Level 5 . | . . . . . High Security . | . . . . . Max Security . | . . . . . Squads Dispatched 2 | . 2 . . . Investigation 1 | . 1 . . . Extermination . | . . . . . Reinforcement 1 | . 1 . . . Assault . | . . . . . Garrison . | . . . . . Intercept . | . . . . . Searches Triggered . | . . . . . Construction Impeded . | . . . . . Haulers Reinforced . | . . . . . Active Scanning Responses . | . . . . . Cargo Convoy Interrupts . | . . . . . Stealth | -11 -10 -10 -10 -9 --------- Run | Scr Mat Min Exi Min Distress Signals 1 | . . . . 1 Communications Jammed . | . . . . . Distress Signals . | . . . . . Times Spotted 42 | . 13 11 . 18 Peak Tracking Total 7 | . 3 4 . 7 Tactical Retreats 2 | . . 1 . 1 Traps | -11 -10 -10 -10 -9 ------- Run | Scr Mat Min Exi Min Traps Triggered 7 | . 6 1 . . Indirectly . | . . . . . Trap Hack Attempts 16 | . . 16 . . Triggered . | . . . . . Disarmed . | . . . . . Reprogrammed 1 | . . 1 . . Reused . | . . . . . Traps Extracted . | . . . . . Installed . | . . . . . Triggered . | . . . . . Machines | -11 -10 -10 -10 -9 ---------- Run | Scr Mat Min Exi Min Machines Disabled . | . . . . . Max in Single Turn . | . . . . . Machines Sabotaged . | . . . . . Overloaded Fab Kills . | . . . . . Hacking | -11 -10 -10 -10 -9 --------- Run | Scr Mat Min Exi Min Machines Accessed 6 | . 3 1 2 . Terminals 1 | . 1 . . . Fabricators . | . . . . . Repair Stations . | . . . . . Recycling Units 2 | . 2 . . . Scanalyzers . | . . . . . Garrison Access . | . . . . . Total Hacks 11 | . 7 1 3 . Successful 9 | . 5 1 3 . Failed 2 | . 2 . . . Catastrophic . | . . . . . Database Lockouts . | . . . . . Manual 3 | . 1 . 2 . Terminals 3 | . 3 . . . Fabricators . | . . . . . Repair Stations . | . . . . . Recycling Units 4 | . 4 . . . Scanalyzers . | . . . . . Garrison Access . | . . . . . Terminal Hacks 6 | . 2 1 3 . Record 2 | . . . 2 . Open Door 1 | . . 1 . . Alert Level 1 | . 1 . . . Registered Components 1 | . 1 . . . EX-Prototype ID Bank 1 | . . . 1 . Fabricator Hacks . | . . . . . Repair Station Hacks . | . . . . . Recycling Unit Hacks 2 | . 2 . . . Retrieve Components 2 | . 2 . . . Scanalyzer . | . . . . . Garrison Access Hacks . | . . . . . Unauthorized Hacks 1 | . 1 . . . Terminals . | . . . . . Fabricators . | . . . . . Repair Stations . | . . . . . Recycling Units 1 | . 1 . . . Tunnel 1 | . 1 . . . Scanalyzers . | . . . . . Garrison Access . | . . . . . Data Cores Recovered . | . . . . . Used . | . . . . . Hacking Detections 3 | . 3 . . . Full Trace Events . | . . . . . Feedback Events . | . . . . . Feedback Blocked . | . . . . . Robot Schematics Acquired . | . . . . . Robots Built . | . . . . . Authchips . | . . . . . Time . | . . . . . Total Robot Build Rating . | . . . . . Part Schematics Acquired . | . . . . . Parts Built . | . . . . . Authchips . | . . . . . Time . | . . . . . Total Part Build Rating . | . . . . . Parts Repaired . | . . . . . Time . | . . . . . Parts Recycled . | . . . . . Recycled Matter . | . . . . . Retrieved Matter . | . . . . . Retrieved Components 11 | . 11 . . . Parts Scanalyzed . | . . . . . Part Schematics Acquired . | . . . . . Parts Damaged . | . . . . . Bothacking | -11 -10 -10 -10 -9 ------------ Run | Scr Mat Min Exi Min Used RIF Installer . | . . . . . Robots Hacked 1 | . . . 1 . Non-combat . | . . . . . Combat 1 | . . . 1 . Robot Hacks Applied 1 | . . . 1 . parse_system 1 | . . . 1 . Relay Couplers Released . | . . . . . Fabnet Peak Effective % . | . . . . . Robots Rewired 4 | . . . 4 . Allies Hacked . | . . . . . Hacks Repelled . | . . . . . Allies | -11 -10 -10 -10 -9 -------- Run | Scr Mat Min Exi Min Total Allies 9 | . . 5 4 . Largest Group 6 | . . 4 6 6 Highest-Rated Group 90 | . . 73 90 90 Highest-Rated Ally 31 | . . 31 31 21 Total Orders . | . . . . . Ally Attacks 54 | . . 24 . 30 Total Damage 717 | . . 220 . 497 Kills 18 | . . 6 . 12 Allies Corrupted 1 | . . . . 1 Allies Melted . | . . . . . Intel | -11 -10 -10 -10 -9 ------- Run | Scr Mat Min Exi Min Robot Analysis Total . | . . . . . Derelict Logs Recovered 2 | . . 1 . 1 Drone Launches . | . . . . . Drone Recoveries . | . . . . . Exploration | -11 -10 -10 -10 -9 ------------- Run | Scr Mat Min Exi Min Turns Passed 2767 | . 870 595 981 321 Spaces Moved 1830 | 1 478 312 805 234 Core 5 | . 5 . . . Treads 500 | . 241 259 . . Legs 50 | 1 49 . . . Wheels 1275 | . 183 53 805 234 Hover . | . . . . . Flight . | . . . . . Fastest Speed 80 | 120 95 80 95 110 Average Speed 123 | 120 133 149 108 124 Slowest Speed 250 | 120 250 240 125 125 Overloaded Moves . | . . . . . Propulsion Burnouts . | . . . . . Robots Hopped . | . . . . . Cave-ins Triggered . | . . . . . Exploration Rate (%) 56 | 1 73 72 90 47 Regions Visited 4 Branch Regions 3 Pre-discovered Areas 1 | . 1 . . . Known Exits Taken . | . . . . . Unknown Exits Taken 4 | 1 1 1 1 . Scrap Searched 3 | . . 1 . 2 Spaces Dug . | . . . . . Terrain Destroyed 10 | . . 10 . . Melee . | . . . . . Projectile . | . . . . . AOE 10 | . . 10 . . Terrain Rammed . | . . . . . Walls Destroyed . | . . . . . Machines Disabled . | . . . . . Actions | -11 -10 -10 -10 -9 --------- Run | Scr Mat Min Exi Min Total 2151 | . 596 398 903 254 Wait 66 | . 25 25 4 12 Move 1826 | . 477 311 804 234 Hop . | . . . . . Pick Up 24 | . 8 5 9 2 Fast Attach 13 | . 10 3 . . Attach 5 | . 3 2 . . Detach . | . . . . . Swap 14 | . 3 6 5 . Drop 21 | . 8 7 5 1 Fire 95 | . 62 22 6 5 Melee 2 | . . . 2 . Ram . | . . . . . Kick . | . . . . . Crush 1 | . . 1 . . Escape Stasis . | . . . . . Rewire 68 | . . . 68 . Trap 16 | . . 16 . . Miscellaneous . | . . . . . Route ------- -11/Scrapyard -10/Materials (discovered 4 exits: [*Mat x3] / *Min) -10/Mines (discovered 3 exits: [*Mat x2] / *Exi) -10/Exiles -9/Mines History --------- Turn | Location | Event 1 | -11/Scrapyard | Discovered new exit (range 0) 1 | -11/Scrapyard | Entered Materials 103 | -10/Materials | Discovered new exit (range 3) 302 | -10/Materials | Build established: Mutant 453 | -10/Materials | Discovered new exit (range 6) 568 | -10/Materials | Discovered new exit (range 6) 680 | -10/Materials | Discovered new exit (range 14) 871 | -10/Materials | Entered Mines 934 | -10/Mines | Core integrity fell below 50% 958 | -10/Mines | Discovered new exit (range 8) 979 | -10/Mines | Assisted by bots powering up and referring to "LRC-V3" 1064 | -10/Mines | Discovered new exit (range 16) 1092 | -10/Mines | Met a Derelict who couldn't figure out how to use a Trap Extractor 1318 | -10/Mines | Learned Materials stockpile data 1455 | -10/Mines | Deemed a non-threat by the Exiles lab entrance 1455 | -10/Mines | Discovered new exit (range 5) 1466 | -10/Mines | Entered Exiles 1466 | -10/Exiles | Found Exiles lab destroyed 1466 | -10/Exiles | Accompanied by 4 allies 1496 | -10/Exiles | Led the pair of lost Derelicts to a safe place 1655 | -10/Exiles | Opened EX-Vault 1664 | -10/Exiles | Found PSU Rigger 1841 | -10/Exiles | Build established: Commander-Mutant 2079 | -10/Exiles | Discovered new exit (range 10) 2447 | -10/Exiles | Entered Mines 2447 | -9/Mines | Accompanied by 6 allies 2451 | -9/Mines | Met a Derelict bent on vengeance 2474 | -9/Mines | Learned 2 Materials zone layouts 2722 | -9/Mines | Assembled infested the area 2767 | -9/Mines | Core integrity fell below 20% 2768 | -9/Mines | Destroyed by D-53 Grenadier with Mini Grenade Launcher Last Messages --------------- 02703_ Found Beam Rifle. 02703_ Found Weight Redist. System. 02703_ Found Beam Cannon. 02703_ Found Terrain Scan Processor. 02703_ Found 30 Matter. 02707_ K-01 Serf collects debris. 02722_ ALERT: Infestation in the mines, dispatching Demolisher response squad. 02723_ K-01 Serf collects debris. 02740_ C-30 ARC bursts open, deploying its payload. 02740_ D-53 Grenadier unfolds itself. 02740_ K-01 Serf destroyed. 02741_ U-05 Engineer lays Concrete. 02743_ as-40554 destroyed. 02745_ as-28417 destroyed. 02745_ as-50903 destroyed. 02745_ as-22938 destroyed. 02750_ The unstable cave ceiling collapses. 02752_ as-22141 destroyed. 02764_ Lgt. Nuclear Core destroyed. Map ----- +----------------------------------------------------+ | ????????????????????????????????????????????????? | | ????????????????????????????????????????????????? | | ???????????????????????###????????????##????????? | | ??????????????????????## ######????? ##???????? | | ??????????????????????# ##### #???????? | | ?????????????????????## #???????? | | ????????????????????## " ????????? | | ???????????????????## ! "%" ??????????? | | ???????????????????# *% " ?????????????? | | ???????????????????# ! #???????????????? | | ?????????????????### #????????????????? | | ?????????????????# #????????????????? | | ????????????????# ##????????????????? | | ????????????????# ##?????????????????? | | ????????????????# % # ##?? ??????????????? | | ????????????????# ??? #?? ??????????????? | | ?????????????? ????? #? ??????????????? | | ??????????????? ??? ??### #? ??????????????? | | ???????????????????#$?# a #? ??????????????? | | ???????????????????#%##d# #? ??????????????? | | ??????????##########% ?? ??????????????? | | ???????? %=%!%[[% # ??# #?????????????? | | ???????? =!%[% = #???# #?????????????? | | ???????????########## #???# #?????????????? | | ????????????????????# #???# #?????????????? | | ????????????????????# @ #???# #?????????????? | | ????????????????????# a ###??# #?????????????? | | ??????????#########?# a##?# #?????????????? | | ??????????# #?# ### ###########???? | | ??????????# #?## ] #???? | | ??????????# ! ! #??### !%[ #???? | | ??????????# ! ! #????#### !########### #???? | | ??????????# ! ! #???????## ##?????????# #???? | | ??????????# !! #????????####??????????# ##??? | | ??????????# #??????????????????????# ##?? | | ??????????# #??????????#####????#### ##? | | ??????????# #??####???## ##???# *! #? | | ??????????###### ##?## ##### ##??#=%= #? | | ???????????????# #??# ####%## #? | | ???????????????# #??# =!%=[## #? | | ???????????????# #### #####%### | | ???????????????# ### ##???#=#?## | | ???????????????#### ###### ##????#%#???# ## | | ?????????#####????# #?### #????##[#????###? | | ?????????# #????#### #???## ##??### ##??????? | | ?????????# # #???????# ####?####??## #??????? | | ?????????# # #???????# #??????## #??????? | | ?????????# # #???????#### #?????## ##??????? | | ?????????# # #??????????#[#????## ###???????? | | ?????##### # ############%###### ##?????????? | +----------------------------------------------------+ Best States ------------- Heat Dissipation 39 Energy Generation 14 Energy Capacity 250 Matter Stores 300 Matter Capacity 300 Sight Range 16 Terrain Scan Density 10 Evasion (%) 55 Recoil Reduction 1 Trap Extractor Capacity 6 Item Schematics ----------------- None Robot Schematics ------------------ None Fabricated ------------ Nothing Alien Tech Used ----------------- None Achievements -------------- None Challenges ------------ None Game ------ Seed MiningBehemothPick Manual? 0 Play Time 00:16:49 Cumulative 198.0 hours Start 2023.01.14 @ 15:51:41 End 2023.01.14 @ 16:09:02 Sessions 1 Manual Loads 0 Difficulty Rogue Special Mode None Game No. 274 Rogue 274 Adventurer 0 Explorer 0 Win Type - Total 5 Types 1/0/3/0/0/0/1/0/0 Lore% 73 Gallery% 84 Achievement% 64 Wizard Run 0 Options --------- ASCII 0 Keyboard 0 Movement Numpad Keybinds 0 Fullscreen 1 Font 18/SmallcapsGlow Map View 76x50 Tactical HUD 1 Map Filters NONE Filters NONE Steam 1 RUN: 802f2424-a56f-4e0c-90d3-a816af3e46ee